[Event "Titled Tuesday Blitz September 28 2021"]
[White "Sellitti, Federico"]
[Black "Mgeladze, Tamaz"]
[WhiteFideId "821829"]
[BlackFideId "13601202"]
[WhiteElo "2564"]
[BlackElo "2258"]
[Result "1-0"]
[Round "08"]
[TimeControl "180+1"]
[Date "2021.09.28"]
[WhiteClock "0:00:05"]
[BlackClock "0:01:04"]

1. e4 {[%clk 0:03:00]}  c5 {[%clk 0:02:59]} 2. Nc3 {[%clk 0:03:00]}  g6 {[%clk 0:02:58]} 3. g3 {[%clk 0:03:01]}  Bg7 {[%clk 0:02:58]} 4. Bg2 {[%clk 0:03:02]}  Nc6 {[%clk 0:02:59]} 5. d3 {[%clk 0:03:03]}  Nf6 {[%clk 0:02:59]} 6. Be3 {[%clk 0:03:03]}  d6 {[%clk 0:02:59]} 7. h3 {[%clk 0:03:04]}  O-O {[%clk 0:02:59]} 8. Qd2 {[%clk 0:03:04]}  Rb8 {[%clk 0:03:00]} 9. Bh6 {[%clk 0:03:04]}  b5 {[%clk 0:03:00]} 10. h4 {[%clk 0:03:04]}  b4 {[%clk 0:02:59]} 11. Nd1 {[%clk 0:03:03]}  Bxh6 {[%clk 0:02:54]} 12. Qxh6 {[%clk 0:03:02]}  Ng4 {[%clk 0:02:55]} 13. Qd2 {[%clk 0:03:02]}  h5 {[%clk 0:02:56]} 14. f3 {[%clk 0:02:59]}  Nge5 {[%clk 0:02:56]} 15. Ne3 {[%clk 0:02:51]}  Nd4 {[%clk 0:02:55]} 16. Kf2 {[%clk 0:01:34]}  f5 {[%clk 0:02:51]} 17. f4 {[%clk 0:00:59]}  fxe4 {[%clk 0:02:45]} 18. dxe4 {[%clk 0:01:00]}  Ng4+ {[%clk 0:02:43]} 19. Nxg4 {[%clk 0:00:59]}  Bxg4 {[%clk 0:02:43]} 20. c3 {[%clk 0:00:56]}  bxc3 {[%clk 0:02:43]} 21. bxc3 {[%clk 0:00:57]}  Ne6 {[%clk 0:02:41]} 22. Nh3 {[%clk 0:00:56]}  Qb6 {[%clk 0:02:38]} 23. Kg1 {[%clk 0:00:52]}  Qb2 {[%clk 0:02:35]} 24. Qe1 {[%clk 0:00:44]}  Qe2 {[%clk 0:02:02]} 25. Qxe2 {[%clk 0:00:41]}  Bxe2 {[%clk 0:02:03]} 26. Kh2 {[%clk 0:00:42]}  Rb2 {[%clk 0:02:03]} 27. Rhb1 {[%clk 0:00:33]}  Rfb8 {[%clk 0:02:02]} 28. Rxb2 {[%clk 0:00:29]}  Rxb2 {[%clk 0:02:03]} 29. Kg1 {[%clk 0:00:29]}  Kg7 {[%clk 0:01:59]} 30. Re1 {[%clk 0:00:27]}  Rxa2 {[%clk 0:01:56]} 31. f5 {[%clk 0:00:28]}  Nf8 {[%clk 0:01:50]} 32. Nf4 {[%clk 0:00:28]}  Bg4 {[%clk 0:01:45]} 33. Rb1 {[%clk 0:00:25]}  gxf5 {[%clk 0:01:43]} 34. exf5 {[%clk 0:00:25]}  Bxf5 {[%clk 0:01:43]} 35. Nxh5+ {[%clk 0:00:24]}  Kh6 {[%clk 0:01:43]} 36. Rf1 {[%clk 0:00:23]}  e6 {[%clk 0:01:32]} 37. Nf6 {[%clk 0:00:23]}  Kg6 {[%clk 0:01:28]} 38. Ne8 {[%clk 0:00:21]}  Rd2 {[%clk 0:01:22]} 39. g4 {[%clk 0:00:15]}  Bxg4 {[%clk 0:01:18]} 40. Rxf8 {[%clk 0:00:15]}  Bf5 {[%clk 0:01:18]} 41. Bf3 {[%clk 0:00:11]}  d5 {[%clk 0:01:15]} 42. h5+ {[%clk 0:00:11]}  Kg5 {[%clk 0:01:11]} 43. Rg8+ {[%clk 0:00:10]}  Kf4 {[%clk 0:01:12]} 44. Bg2 {[%clk 0:00:11]}  d4 {[%clk 0:01:09]} 45. cxd4 {[%clk 0:00:10]}  cxd4 {[%clk 0:01:10]} 46. Nd6 {[%clk 0:00:11]}  d3 {[%clk 0:01:10]} 47. Nxf5 {[%clk 0:00:11]}  exf5 {[%clk 0:01:11]} 48. h6 {[%clk 0:00:10]}  Rd1+ {[%clk 0:01:11]} 49. Kh2 {[%clk 0:00:11]}  d2 {[%clk 0:01:12]} 50. Rd8 {[%clk 0:00:10]}  Re1 {[%clk 0:01:04]} 51. h7 {[%clk 0:00:08]}  Re6 {[%clk 0:01:05]} 52. h8=Q {[%clk 0:00:08]}  Kg5 {[%clk 0:01:01]} 53. Rg8+ {[%clk 0:00:07]}  Kf4 {[%clk 0:01:01]} 54. Qh4+ {[%clk 0:00:07]}  Ke5 {[%clk 0:01:02]} 55. Qg3+ {[%clk 0:00:05]}  f4 {[%clk 0:01:03]} 56. Qc3+ {[%clk 0:00:05]}  Kf5 {[%clk 0:01:02]} 57. Qxd2 {[%clk 0:00:06]}  Rh6+ {[%clk 0:01:01]} 58. Kg1 {[%clk 0:00:06]}  f3 {[%clk 0:01:02]} 59. Qxh6 {[%clk 0:00:04]}  f2+ {[%clk 0:01:03]} 60. Kxf2 {[%clk 0:00:04]}  a5 {[%clk 0:01:04]} 61. Rg5+ {[%clk 0:00:04]}  Kf4 {[%clk 0:01:04]} 62. Qh4# {[%clk 0:00:05]} 1-0


[Site "https://www.chess.com"]

[Event "Titled Tuesday Blitz September 28 2021"]
[White "Seo, Jung Min"]
[Black "Urazayev, Arystanbek"]
[WhiteFideId "1734687"]
[BlackFideId "13709810"]
[WhiteElo "2486"]
[BlackElo "2321"]
[Result "1/2-1/2"]
[Round "08"]
[TimeControl "180+1"]
[Date "2021.09.28"]
[WhiteClock "0:00:42"]
[BlackClock "0:00:40"]

1. e4 {[%clk 0:03:00]}  c5 {[%clk 0:03:00]} 2. Nf3 {[%clk 0:03:01]}  e6 {[%clk 0:03:01]} 3. d4 {[%clk 0:02:59]}  cxd4 {[%clk 0:03:02]} 4. Nxd4 {[%clk 0:02:59]}  Nf6 {[%clk 0:03:02]} 5. Nc3 {[%clk 0:02:59]}  Nc6 {[%clk 0:03:03]} 6. a3 {[%clk 0:02:58]}  d6 {[%clk 0:03:03]} 7. Be2 {[%clk 0:02:57]}  Be7 {[%clk 0:03:03]} 8. Be3 {[%clk 0:02:57]}  O-O {[%clk 0:03:02]} 9. O-O {[%clk 0:02:57]}  e5 {[%clk 0:03:03]} 10. Nb3 {[%clk 0:02:50]}  Be6 {[%clk 0:03:03]} 11. f3 {[%clk 0:02:50]}  d5 {[%clk 0:03:01]} 12. exd5 {[%clk 0:02:50]}  Nxd5 {[%clk 0:03:02]} 13. Nxd5 {[%clk 0:02:50]}  Bxd5 {[%clk 0:03:00]} 14. c4 {[%clk 0:02:28]}  Be6 {[%clk 0:02:58]} 15. Nc5 {[%clk 0:02:28]}  Nd4 {[%clk 0:02:42]} 16. Bxd4 {[%clk 0:02:26]}  exd4 {[%clk 0:02:43]} 17. Nxe6 {[%clk 0:02:26]}  fxe6 {[%clk 0:02:44]} 18. f4 {[%clk 0:02:19]}  e5 {[%clk 0:02:33]} 19. fxe5 {[%clk 0:02:17]}  Qc7 {[%clk 0:02:32]} 20. e6 {[%clk 0:02:09]}  Qe5 {[%clk 0:02:25]} 21. Bd3 {[%clk 0:01:58]}  Qe3+ {[%clk 0:01:43]} 22. Kh1 {[%clk 0:01:58]}  Rxf1+ {[%clk 0:01:43]} 23. Qxf1 {[%clk 0:01:57]}  Rf8 {[%clk 0:01:44]} 24. Qe2 {[%clk 0:01:44]}  Rf2 {[%clk 0:01:43]} 25. Qxe3 {[%clk 0:01:44]}  dxe3 {[%clk 0:01:44]} 26. Re1 {[%clk 0:01:30]}  Bc5 {[%clk 0:00:20]} 27. b4 {[%clk 0:01:21]}  Bd4 {[%clk 0:00:20]} 28. Rf1 {[%clk 0:01:08]}  e2 {[%clk 0:00:17]} 29. Re1 {[%clk 0:01:09]}  Bc3 {[%clk 0:00:18]} 30. e7 {[%clk 0:01:09]}  Kf7 {[%clk 0:00:16]} 31. e8=Q+ {[%clk 0:01:09]}  Kxe8 {[%clk 0:00:16]} 32. Rxe2+ {[%clk 0:01:09]}  Rxe2 {[%clk 0:00:17]} 33. Bxe2 {[%clk 0:01:09]}  Ke7 {[%clk 0:00:15]} 34. Bd3 {[%clk 0:01:06]}  h6 {[%clk 0:00:14]} 35. g3 {[%clk 0:01:06]}  Kf6 {[%clk 0:00:14]} 36. Kg2 {[%clk 0:01:06]}  Ke5 {[%clk 0:00:15]} 37. Kf3 {[%clk 0:01:06]}  Kd4 {[%clk 0:00:15]} 38. Ke2 {[%clk 0:01:04]}  b6 {[%clk 0:00:16]} 39. g4 {[%clk 0:00:59]}  Bb2 {[%clk 0:00:16]} 40. a4 {[%clk 0:00:59]}  Ba3 {[%clk 0:00:16]} 41. b5 {[%clk 0:00:56]}  Kc5 {[%clk 0:00:17]} 42. Kf3 {[%clk 0:00:54]}  Kb4 {[%clk 0:00:17]} 43. Ke4 {[%clk 0:00:52]}  Kxa4 {[%clk 0:00:17]} 44. h4 {[%clk 0:00:50]}  Kb4 {[%clk 0:00:17]} 45. g5 {[%clk 0:00:50]}  hxg5 {[%clk 0:00:17]} 46. hxg5 {[%clk 0:00:50]}  Kc5 {[%clk 0:00:18]} 47. g6 {[%clk 0:00:50]}  Bb2 {[%clk 0:00:19]} 48. Be2 {[%clk 0:00:50]}  Bf6 {[%clk 0:00:19]} 49. Bd3 {[%clk 0:00:50]}  Kd6 {[%clk 0:00:19]} 50. Be2 {[%clk 0:00:50]}  Ba1 {[%clk 0:00:20]} 51. Bd3 {[%clk 0:00:50]}  Bf6 {[%clk 0:00:21]} 52. Be2 {[%clk 0:00:50]}  Kc5 {[%clk 0:00:22]} 53. Bd3 {[%clk 0:00:50]}  Kb4 {[%clk 0:00:22]} 54. Be2 {[%clk 0:00:50]}  Kc3 {[%clk 0:00:23]} 55. Bd3 {[%clk 0:00:50]}  Kd2 {[%clk 0:00:22]} 56. Bf1 {[%clk 0:00:50]}  Ke1 {[%clk 0:00:23]} 57. Bd3 {[%clk 0:00:50]}  Kf2 {[%clk 0:00:24]} 58. Kd5 {[%clk 0:00:47]}  Ke3 {[%clk 0:00:24]} 59. Bf5 {[%clk 0:00:47]}  Kf4 {[%clk 0:00:24]} 60. Bb1 {[%clk 0:00:47]}  Ke3 {[%clk 0:00:24]} 61. Bf5 {[%clk 0:00:46]}  Be7 {[%clk 0:00:23]} 62. Kc6 {[%clk 0:00:44]}  Kd4 {[%clk 0:00:24]} 63. Be6 {[%clk 0:00:44]}  Ke5 {[%clk 0:00:23]} 64. Bf7 {[%clk 0:00:44]}  Bc5 {[%clk 0:00:23]} 65. Kb7 {[%clk 0:00:44]}  Kf6 {[%clk 0:00:24]} 66. Kxa7 {[%clk 0:00:44]}  Bg1 {[%clk 0:00:25]} 67. Kb7 {[%clk 0:00:44]}  Bc5 {[%clk 0:00:26]} 68. Kc6 {[%clk 0:00:44]}  Bg1 {[%clk 0:00:26]} 69. Kd5 {[%clk 0:00:43]}  Bc5 {[%clk 0:00:27]} 70. Ke4 {[%clk 0:00:42]}  Bg1 {[%clk 0:00:28]} 71. Kf3 {[%clk 0:00:42]}  Bc5 {[%clk 0:00:29]} 72. Kg2 {[%clk 0:00:43]}  Bf8 {[%clk 0:00:30]} 73. Kf3 {[%clk 0:00:42]}  Bc5 {[%clk 0:00:31]} 74. Ke4 {[%clk 0:00:42]}  Bf8 {[%clk 0:00:32]} 75. Kd4 {[%clk 0:00:43]}  Bc5+ {[%clk 0:00:33]} 76. Kd5 {[%clk 0:00:43]}  Bg1 {[%clk 0:00:34]} 77. Ke4 {[%clk 0:00:42]}  Bc5 {[%clk 0:00:35]} 78. Kd3 {[%clk 0:00:42]}  Bg1 {[%clk 0:00:35]} 79. Ke4 {[%clk 0:00:43]}  Bc5 {[%clk 0:00:36]} 80. Kf3 {[%clk 0:00:43]}  Bf8 {[%clk 0:00:37]} 81. Ke2 {[%clk 0:00:42]}  Bc5 {[%clk 0:00:38]} 82. Kf3 {[%clk 0:00:42]}  Bf8 {[%clk 0:00:39]} 83. Ke4 {[%clk 0:00:42]}  Bc5 {[%clk 0:00:40]} 1/2-1/2


[Site "https://www.chess.com"]

[Event "Titled Tuesday Blitz September 28 2021"]
[White "Sethuraman, S.P."]
[Black "Zhigalko, Sergei"]
[WhiteFideId "5021596"]
[BlackFideId "13502956"]
[WhiteElo "2477"]
[BlackElo "2662"]
[Result "1/2-1/2"]
[Round "08"]
[TimeControl "180+1"]
[Date "2021.09.28"]
[WhiteClock "0:00:15"]
[BlackClock "0:00:03"]

1. d4 {[%clk 0:02:03]}  Nf6 {[%clk 0:02:59]} 2. c4 {[%clk 0:02:03]}  e6 {[%clk 0:03:00]} 3. Nf3 {[%clk 0:02:03]}  b6 {[%clk 0:03:00]} 4. a3 {[%clk 0:02:03]}  Bb7 {[%clk 0:02:54]} 5. Bf4 {[%clk 0:02:02]}  Bd6 {[%clk 0:02:49]} 6. Bxd6 {[%clk 0:02:00]}  cxd6 {[%clk 0:02:50]} 7. e3 {[%clk 0:02:00]}  O-O {[%clk 0:02:50]} 8. Nc3 {[%clk 0:01:57]}  d5 {[%clk 0:02:45]} 9. cxd5 {[%clk 0:01:55]}  Nxd5 {[%clk 0:02:46]} 10. Nxd5 {[%clk 0:01:54]}  Bxd5 {[%clk 0:02:47]} 11. Bd3 {[%clk 0:01:54]}  f5 {[%clk 0:02:43]} 12. O-O {[%clk 0:01:54]}  Nc6 {[%clk 0:02:44]} 13. Rc1 {[%clk 0:01:54]}  Rc8 {[%clk 0:02:34]} 14. Bc4 {[%clk 0:01:50]}  Ne7 {[%clk 0:02:25]} 15. Qd3 {[%clk 0:01:45]}  Bxf3 {[%clk 0:02:10]} 16. gxf3 {[%clk 0:01:46]}  Ng6 {[%clk 0:02:10]} 17. f4 {[%clk 0:01:43]}  Qh4 {[%clk 0:02:06]} 18. Qe2 {[%clk 0:01:35]}  Qh3 {[%clk 0:01:58]} 19. d5 {[%clk 0:01:15]}  Nh4 {[%clk 0:01:47]} 20. f3 {[%clk 0:01:15]}  Kh8 {[%clk 0:00:58]} 21. Kh1 {[%clk 0:01:09]}  Rce8 {[%clk 0:00:25]} 22. dxe6 {[%clk 0:01:07]}  dxe6 {[%clk 0:00:24]} 23. Qf2 {[%clk 0:01:04]}  Ng6 {[%clk 0:00:16]} 24. Qg3 {[%clk 0:01:04]}  Qh4 {[%clk 0:00:14]} 25. Bb5 {[%clk 0:00:50]}  Rd8 {[%clk 0:00:12]} 26. Qxh4 {[%clk 0:00:42]}  Nxh4 {[%clk 0:00:13]} 27. Rc2 {[%clk 0:00:42]}  h6 {[%clk 0:00:10]} 28. Kg1 {[%clk 0:00:42]}  g5 {[%clk 0:00:09]} 29. fxg5 {[%clk 0:00:40]}  Rg8 {[%clk 0:00:09]} 30. h3 {[%clk 0:00:20]}  Rxg5+ {[%clk 0:00:08]} 31. Kh2 {[%clk 0:00:20]}  Rdg8 {[%clk 0:00:08]} 32. Bd7 {[%clk 0:00:18]}  R8g6 {[%clk 0:00:03]} 33. Rff2 {[%clk 0:00:17]}  Rg3 {[%clk 0:00:02]} 34. Bc6 {[%clk 0:00:15]}  Rg1 {[%clk 0:00:02]} 35. f4 {[%clk 0:00:14]}  Re1 {[%clk 0:00:02]} 36. Rce2 {[%clk 0:00:14]}  Rc1 {[%clk 0:00:01]} 37. Rc2 {[%clk 0:00:14]}  Re1 {[%clk 0:00:02]} 38. Rce2 {[%clk 0:00:14]}  Rc1 {[%clk 0:00:02]} 39. Rc2 {[%clk 0:00:15]}  Re1 {[%clk 0:00:03]} 1/2-1/2


[Site "https://www.chess.com"]

[Event "Titled Tuesday Blitz September 28 2021"]
[White "Sinitsina, Anastassia"]
[Black "Avila Pavas, Santiago"]
[WhiteFideId "4504640"]
[BlackFideId "4437128"]
[WhiteElo "2161"]
[BlackElo "2292"]
[Result "1-0"]
[Round "08"]
[TimeControl "180+1"]
[Date "2021.09.28"]
[WhiteClock "0:00:10"]
[BlackClock "0:00:02"]

1. Nf3 {[%clk 0:03:00]}  d5 {[%clk 0:02:59]} 2. g3 {[%clk 0:03:01]}  c6 {[%clk 0:02:59]} 3. Bg2 {[%clk 0:03:02]}  Nf6 {[%clk 0:02:59]} 4. O-O {[%clk 0:03:02]}  Bf5 {[%clk 0:02:58]} 5. d3 {[%clk 0:03:03]}  Nbd7 {[%clk 0:02:57]} 6. Nbd2 {[%clk 0:03:03]}  h6 {[%clk 0:02:57]} 7. Qe1 {[%clk 0:03:04]}  e6 {[%clk 0:02:57]} 8. e4 {[%clk 0:03:04]}  Bh7 {[%clk 0:02:58]} 9. Qe2 {[%clk 0:03:05]}  Be7 {[%clk 0:02:56]} 10. e5 {[%clk 0:03:02]}  Ng8 {[%clk 0:02:56]} 11. Re1 {[%clk 0:03:01]}  c5 {[%clk 0:02:55]} 12. Nf1 {[%clk 0:02:56]}  Bf8 {[%clk 0:02:53]} 13. h4 {[%clk 0:02:56]}  Ne7 {[%clk 0:02:53]} 14. N1h2 {[%clk 0:02:54]}  Nc6 {[%clk 0:02:52]} 15. Bf4 {[%clk 0:02:53]}  Be7 {[%clk 0:02:51]} 16. Qd2 {[%clk 0:02:48]}  Qa5 {[%clk 0:02:45]} 17. c3 {[%clk 0:02:38]}  O-O-O {[%clk 0:02:42]} 18. Ng4 {[%clk 0:02:34]}  Rdg8 {[%clk 0:02:33]} 19. a3 {[%clk 0:02:27]}  Qd8 {[%clk 0:02:25]} 20. b4 {[%clk 0:02:26]}  g5 {[%clk 0:02:25]} 21. hxg5 {[%clk 0:02:22]}  hxg5 {[%clk 0:02:24]} 22. Be3 {[%clk 0:02:19]}  Bf5 {[%clk 0:02:19]} 23. Nf6 {[%clk 0:02:12]}  Nxf6 {[%clk 0:02:14]} 24. exf6 {[%clk 0:02:12]}  Bxf6 {[%clk 0:02:15]} 25. Bxc5 {[%clk 0:02:11]}  g4 {[%clk 0:02:00]} 26. Nh2 {[%clk 0:02:02]}  Ne5 {[%clk 0:01:43]} 27. Bxa7 {[%clk 0:01:55]}  Rh5 {[%clk 0:01:09]} 28. Bd4 {[%clk 0:01:42]}  Bh7 {[%clk 0:00:26]} 29. Bxe5 {[%clk 0:01:28]}  Bxe5 {[%clk 0:00:26]} 30. Nf1 {[%clk 0:01:22]}  Rh8 {[%clk 0:00:21]} 31. Rac1 {[%clk 0:01:20]}  Bg6 {[%clk 0:00:19]} 32. c4 {[%clk 0:01:18]}  d4 {[%clk 0:00:16]} 33. Qe2 {[%clk 0:01:09]}  Qg5 {[%clk 0:00:14]} 34. Qd2 {[%clk 0:00:46]}  Qf6 {[%clk 0:00:08]} 35. Qe2 {[%clk 0:00:44]}  Qg7 {[%clk 0:00:08]} 36. Qxg4 {[%clk 0:00:34]}  Qh7 {[%clk 0:00:03]} 37. Qf3 {[%clk 0:00:30]}  Kd8 {[%clk 0:00:03]} 38. Qxb7 {[%clk 0:00:28]}  Bc7 {[%clk 0:00:02]} 39. b5 {[%clk 0:00:23]}  Bf5 {[%clk 0:00:02]} 40. b6 {[%clk 0:00:23]}  Bd6 {[%clk 0:00:02]} 41. Qc6 {[%clk 0:00:20]}  Ke7 {[%clk 0:00:02]} 42. b7 {[%clk 0:00:15]}  Bh3 {[%clk 0:00:02]} 43. Bf3 {[%clk 0:00:14]}  Bg4 {[%clk 0:00:02]} 44. Bxg4 {[%clk 0:00:10]}  Rh1+ {[%clk 0:00:02]} 45. Kg2 {[%clk 0:00:10]} 1-0


[Site "https://www.chess.com"]

[Event "Titled Tuesday Blitz September 28 2021"]
[White "Sokolovsky, Yahli"]
[Black "Warmerdam, Max"]
[WhiteFideId "2820242"]
[BlackFideId "1048104"]
[WhiteElo "1770"]
[BlackElo "2537"]
[Result "1/2-1/2"]
[Round "08"]
[TimeControl "180+1"]
[Date "2021.09.28"]
[WhiteClock "0:00:05"]
[BlackClock "0:01:48"]

1. b3 {[%clk 0:03:00]}  d5 {[%clk 0:02:59]} 2. Bb2 {[%clk 0:03:00]}  Bg4 {[%clk 0:03:00]} 3. h3 {[%clk 0:02:58]}  Bh5 {[%clk 0:03:00]} 4. Nf3 {[%clk 0:02:50]}  e6 {[%clk 0:02:58]} 5. g4 {[%clk 0:02:46]}  Bg6 {[%clk 0:02:58]} 6. Ne5 {[%clk 0:02:46]}  a5 {[%clk 0:02:58]} 7. a4 {[%clk 0:02:29]}  Nd7 {[%clk 0:02:58]} 8. Nxg6 {[%clk 0:02:29]}  hxg6 {[%clk 0:02:57]} 9. Bg2 {[%clk 0:02:29]}  c6 {[%clk 0:02:56]} 10. d3 {[%clk 0:02:28]}  Ngf6 {[%clk 0:02:53]} 11. Nd2 {[%clk 0:02:26]}  Bd6 {[%clk 0:02:52]} 12. e4 {[%clk 0:02:25]}  Bf4 {[%clk 0:02:49]} 13. Qe2 {[%clk 0:02:08]}  Qc7 {[%clk 0:02:46]} 14. Nf3 {[%clk 0:02:00]}  dxe4 {[%clk 0:02:42]} 15. dxe4 {[%clk 0:02:00]}  e5 {[%clk 0:02:42]} 16. Nd2 {[%clk 0:01:46]}  O-O {[%clk 0:02:41]} 17. O-O {[%clk 0:01:44]}  Rfd8 {[%clk 0:02:35]} 18. Nc4 {[%clk 0:01:44]}  Nc5 {[%clk 0:02:35]} 19. Rfd1 {[%clk 0:01:39]}  Ne6 {[%clk 0:02:35]} 20. Rxd8+ {[%clk 0:01:29]}  Rxd8 {[%clk 0:02:36]} 21. Rd1 {[%clk 0:01:29]}  Rxd1+ {[%clk 0:02:30]} 22. Qxd1 {[%clk 0:01:30]}  b5 {[%clk 0:02:30]} 23. axb5 {[%clk 0:01:25]}  cxb5 {[%clk 0:02:31]} 24. Na3 {[%clk 0:01:26]}  Qc5 {[%clk 0:02:29]} 25. Qd3 {[%clk 0:01:24]}  b4 {[%clk 0:02:23]} 26. Nc4 {[%clk 0:01:24]}  Ng5 {[%clk 0:02:18]} 27. Kf1 {[%clk 0:00:59]}  Kh7 {[%clk 0:02:17]} 28. Ke2 {[%clk 0:00:55]}  Ne6 {[%clk 0:02:14]} 29. Qd6 {[%clk 0:00:48]}  Qa7 {[%clk 0:02:08]} 30. Qb6 {[%clk 0:00:44]}  Qd7 {[%clk 0:02:04]} 31. Qxa5 {[%clk 0:00:27]}  Nd4+ {[%clk 0:02:03]} 32. Bxd4 {[%clk 0:00:26]}  Qxd4 {[%clk 0:02:04]} 33. Qxb4 {[%clk 0:00:16]}  Nxe4 {[%clk 0:02:04]} 34. Bxe4 {[%clk 0:00:14]}  Qxe4+ {[%clk 0:02:04]} 35. Kf1 {[%clk 0:00:13]}  Qxc2 {[%clk 0:02:03]} 36. Ne3 {[%clk 0:00:07]}  Qd3+ {[%clk 0:01:59]} 37. Kg2 {[%clk 0:00:05]}  Bxe3 {[%clk 0:01:57]} 38. fxe3 {[%clk 0:00:06]}  Qe2+ {[%clk 0:01:57]} 39. Kh1 {[%clk 0:00:04]}  Qf1+ {[%clk 0:01:55]} 40. Kh2 {[%clk 0:00:04]}  Qf2+ {[%clk 0:01:56]} 41. Kh1 {[%clk 0:00:04]}  Qxe3 {[%clk 0:01:51]} 42. Kg2 {[%clk 0:00:01]}  e4 {[%clk 0:01:47]} 43. Qe7 {[%clk 0:00:01]}  Qf3+ {[%clk 0:01:47]} 44. Kh2 {[%clk 0:00:01]}  e3 {[%clk 0:01:47]} 45. Qh4+ {[%clk 0:00:02]}  Kg8 {[%clk 0:01:46]} 46. Qd8+ {[%clk 0:00:02]}  Kh7 {[%clk 0:01:47]} 47. Qh4+ {[%clk 0:00:03]}  Kg8 {[%clk 0:01:48]} 48. Qd8+ {[%clk 0:00:04]}  Kh7 {[%clk 0:01:48]} 49. Qh4+ {[%clk 0:00:05]} 1/2-1/2


[Site "https://www.chess.com"]

[Event "Titled Tuesday Blitz September 28 2021"]
[White "Stoyanov, Tsvetan"]
[Black "Sadovsky, Artem"]
[WhiteFideId "2917173"]
[BlackFideId "4155840"]
[WhiteElo "2191"]
[BlackElo "2414"]
[Result "0-1"]
[Round "08"]
[TimeControl "180+1"]
[Date "2021.09.28"]
[WhiteClock "0:00:05"]
[BlackClock "0:00:13"]

1. e4 {[%clk 0:03:00]}  g6 {[%clk 0:02:57]} 2. d4 {[%clk 0:02:59]}  Bg7 {[%clk 0:02:57]} 3. Nc3 {[%clk 0:02:59]}  c6 {[%clk 0:02:57]} 4. h3 {[%clk 0:02:54]}  d5 {[%clk 0:02:57]} 5. Nf3 {[%clk 0:02:53]}  dxe4 {[%clk 0:02:57]} 6. Nxe4 {[%clk 0:02:53]}  Nd7 {[%clk 0:02:58]} 7. Bd3 {[%clk 0:02:51]}  Ngf6 {[%clk 0:02:58]} 8. O-O {[%clk 0:02:51]}  O-O {[%clk 0:02:59]} 9. c3 {[%clk 0:02:50]}  Qc7 {[%clk 0:02:58]} 10. Re1 {[%clk 0:02:49]}  c5 {[%clk 0:02:57]} 11. dxc5 {[%clk 0:02:44]}  Nxe4 {[%clk 0:02:57]} 12. Bxe4 {[%clk 0:02:43]}  Nxc5 {[%clk 0:02:57]} 13. Bc2 {[%clk 0:02:43]}  e5 {[%clk 0:02:37]} 14. Qe2 {[%clk 0:02:41]}  Re8 {[%clk 0:01:47]} 15. Be3 {[%clk 0:02:28]}  Bd7 {[%clk 0:01:42]} 16. Rad1 {[%clk 0:02:27]}  Rad8 {[%clk 0:01:41]} 17. Bg5 {[%clk 0:02:21]}  f6 {[%clk 0:01:40]} 18. Be3 {[%clk 0:02:20]}  Be6 {[%clk 0:01:26]} 19. Qb5 {[%clk 0:02:18]}  b6 {[%clk 0:01:23]} 20. b4 {[%clk 0:01:59]}  Nb7 {[%clk 0:01:17]} 21. Be4 {[%clk 0:01:41]}  Nd6 {[%clk 0:01:09]} 22. Qc6 {[%clk 0:01:40]}  Qe7 {[%clk 0:01:00]} 23. Bd5 {[%clk 0:01:34]}  Bf8 {[%clk 0:00:43]} 24. Bxe6+ {[%clk 0:01:07]}  Qxe6 {[%clk 0:00:44]} 25. Qa4 {[%clk 0:01:07]}  Qf7 {[%clk 0:00:31]} 26. Qa6 {[%clk 0:00:48]}  Nc4 {[%clk 0:00:30]} 27. Bc1 {[%clk 0:00:41]}  Kg7 {[%clk 0:00:26]} 28. Nd2 {[%clk 0:00:33]}  Nxd2 {[%clk 0:00:22]} 29. Rxd2 {[%clk 0:00:34]}  Rxd2 {[%clk 0:00:22]} 30. Bxd2 {[%clk 0:00:35]}  Rd8 {[%clk 0:00:22]} 31. Be3 {[%clk 0:00:35]}  Rd7 {[%clk 0:00:22]} 32. c4 {[%clk 0:00:34]}  Bxb4 {[%clk 0:00:20]} 33. Rb1 {[%clk 0:00:31]}  Bf8 {[%clk 0:00:19]} 34. a4 {[%clk 0:00:30]}  Rc7 {[%clk 0:00:19]} 35. a5 {[%clk 0:00:29]}  Qxc4 {[%clk 0:00:17]} 36. Qxc4 {[%clk 0:00:20]}  Rxc4 {[%clk 0:00:18]} 37. axb6 {[%clk 0:00:20]}  axb6 {[%clk 0:00:19]} 38. Rxb6 {[%clk 0:00:20]}  Rc7 {[%clk 0:00:17]} 39. Kh2 {[%clk 0:00:18]}  Bc5 {[%clk 0:00:11]} 40. Bxc5 {[%clk 0:00:17]}  Rxc5 {[%clk 0:00:12]} 41. g4 {[%clk 0:00:17]}  Rc3 {[%clk 0:00:12]} 42. Kg2 {[%clk 0:00:17]}  e4 {[%clk 0:00:06]} 43. Re6 {[%clk 0:00:15]}  f5 {[%clk 0:00:07]} 44. g5 {[%clk 0:00:11]}  Kf7 {[%clk 0:00:07]} 45. Re5 {[%clk 0:00:11]}  Rc2 {[%clk 0:00:07]} 46. h4 {[%clk 0:00:10]}  Rc3 {[%clk 0:00:03]} 47. h5 {[%clk 0:00:10]}  Rf3 {[%clk 0:00:03]} 48. hxg6+ {[%clk 0:00:10]}  hxg6 {[%clk 0:00:04]} 49. Ra5 {[%clk 0:00:10]}  Rf4 {[%clk 0:00:04]} 50. Ra7+ {[%clk 0:00:08]}  Kf8 {[%clk 0:00:05]} 51. Ra6 {[%clk 0:00:08]}  Rg4+ {[%clk 0:00:05]} 52. Kh3 {[%clk 0:00:08]}  Rxg5 {[%clk 0:00:06]} 53. Ra7 {[%clk 0:00:04]}  Kg8 {[%clk 0:00:05]} 54. Rb7 {[%clk 0:00:04]}  Rg4 {[%clk 0:00:06]} 55. Rc7 {[%clk 0:00:04]}  Rf4 {[%clk 0:00:06]} 56. Kg3 {[%clk 0:00:04]}  Rf3+ {[%clk 0:00:07]} 57. Kg2 {[%clk 0:00:05]}  Rd3 {[%clk 0:00:07]} 58. Re7 {[%clk 0:00:05]}  Rd6 {[%clk 0:00:07]} 59. Ra7 {[%clk 0:00:05]}  Rf6 {[%clk 0:00:07]} 60. Kg3 {[%clk 0:00:05]}  Rf7 {[%clk 0:00:08]} 61. Ra6 {[%clk 0:00:04]}  Kg7 {[%clk 0:00:08]} 62. Kf4 {[%clk 0:00:05]}  Rf6 {[%clk 0:00:08]} 63. Ra7+ {[%clk 0:00:05]}  Kh6 {[%clk 0:00:08]} 64. Ra8 {[%clk 0:00:03]}  Re6 {[%clk 0:00:09]} 65. Rh8+ {[%clk 0:00:03]}  Kg7 {[%clk 0:00:09]} 66. Ra8 {[%clk 0:00:04]}  Kf6 {[%clk 0:00:10]} 67. Rf8+ {[%clk 0:00:04]}  Ke7 {[%clk 0:00:11]} 68. Ra8 {[%clk 0:00:04]}  Kd6 {[%clk 0:00:11]} 69. Ra6+ {[%clk 0:00:05]}  Kd5 {[%clk 0:00:12]} 70. Ra5+ {[%clk 0:00:05]}  Kd4 {[%clk 0:00:12]} 71. Ra4+ {[%clk 0:00:05]}  Kd3 {[%clk 0:00:13]} 72. Ra3+ {[%clk 0:00:06]}  Ke2 {[%clk 0:00:14]} 73. f3 {[%clk 0:00:05]}  e3 {[%clk 0:00:13]} 0-1


[Site "https://www.chess.com"]